fUSD/lending_fUSD_20260703
["ID","MTS","AMOUNT","RATE_DAILY","PERIOD"]
[426939809,1783032647000,-184.614653,0.00032682,7]
[426939807,1783032647000,-195.687971,0.00032682,7]
[426939810,1783032647000,-184.614653,0.00032682,7]
[426939812,1783032647000,-184.614653,0.00032682,7]
[426939813,1783032647000,-151.0,0.00032682,7]
[426939811,1783032647000,-184.614653,0.00032682,7]
[426939814,1783032647000,-6855.010299,0.00032682,7]
[426939832,1783032647000,-396.027282,0.00032682,7]
[426939817,1783032647000,-6064.86850787,0.00032682,7]
[426939820,1783032647000,-189.45828351,0.000299,2]
[426939821,1783032647000,-776.506228,0.0003009,7]
[426939818,1783032647000,-776.506228,0.00027397,2]
[426939819,1783032647000,-279.237617,0.000299,2]
[426939822,1783032647000,-776.506228,0.0003009,7]
[426939830,1783032647000,-396.027282,0.00032682,7]
[426939834,1783032647000,-2401.86521284,0.0003269,2]
[426939825,1783032647000,-200.0,0.00032347,2]
[426939823,1783032647000,-776.506228,0.000301,7]
[426939815,1783032647000,-6855.010299,0.00032682,7]
[426939852,1783032647000,-302.20830243,0.00032877,10]
[426939816,1783032647000,-6855.010299,0.00032682,7]
[426939855,1783032647000,-1000.0,0.00032877,10]
[426939884,1783032647000,-164.51498429,0.00032877,7]
[426939882,1783032647000,-776.506228,0.00032347,7]
[426939877,1783032647000,-187.4,0.00027551,2]
[426939881,1783032647000,-776.506228,0.000301,7]
[426939876,1783032647000,-776.506228,0.00027397,2]
[426939886,1783032647000,-251.576064,0.00032877,7]
[426939883,1783032647000,-776.506228,0.00032347,7]
[426939887,1783032647000,-251.576064,0.00032877,7]
[426939891,1783032647000,-251.576064,0.00032877,7]
[426939885,1783032647000,-251.576064,0.00032877,7]
[426939888,1783032647000,-251.576064,0.00032877,7]
[426939893,1783032647000,-251.576064,0.00032877,7]
[426939895,1783032647000,-902.28,0.00032877,50]
[426939897,1783032647000,-180.71572141,0.00032877,10]
[426939896,1783032647000,-250.69,0.00032877,30]
[426939892,1783032647000,-251.576064,0.00032877,7]
[426939894,1783032647000,-162.259372,0.00032877,120]
[426939889,1783032647000,-251.576064,0.00032877,7]
[426939898,1783032647000,-14850.4212191,0.000329,15]
[426939858,1783032647000,-1000.0,0.00032877,10]
[426939890,1783032647000,-251.576064,0.00032877,7]
[426939878,1783032647000,-776.506228,0.0003009,7]
[426939880,1783032647000,-337.28780208,0.000301,7]
[426939873,1783032647000,-251.576064,0.00032877,7]
[426939854,1783032647000,-1000.0,0.00032877,10]
[426939856,1783032647000,-1000.0,0.00032877,10]
[426939857,1783032647000,-1000.0,0.00032877,10]
[426939879,1783032647000,-439.21842592,0.000301,7]
[426939853,1783032647000,-1000.0,0.00032877,10]
[426939868,1783032647000,-251.576064,0.00032877,7]
[426939869,1783032647000,-251.576064,0.00032877,7]
[426939866,1783032647000,-1742.90169,0.00032877,5]
[426939870,1783032647000,-251.576064,0.00032877,7]
[426939863,1783032647000,-1742.90169,0.00032877,5]
[426939861,1783032647000,-641.57556219,0.00032877,10]
[426939847,1783032647000,-237.0,0.00032746,3]
[426939871,1783032647000,-251.576064,0.00032877,7]
[426939867,1783032647000,-151.0,0.00032877,7]
[426939875,1783032647000,-281.11,0.00024658,2]
[426939872,1783032647000,-251.576064,0.00032877,7]
[426939862,1783032647000,-358.42443781,0.00032877,10]
[426939874,1783032647000,-87.06107971,0.00032877,7]
[426939860,1783032647000,-1000.0,0.00032877,10]
[426939865,1783032647000,-1742.90169,0.00032877,5]
[426939864,1783032647000,-1742.90169,0.00032877,5]
[426939859,1783032647000,-1000.0,0.00032877,10]
[426939922,1783032648000,-216.69616408,0.00033,30]
[426939901,1783032648000,-438.51,0.00027711,7]
[426939909,1783032648000,-3094.51763812,0.000329,2]
[426939911,1783032648000,-3094.51763811,0.000329,2]
[426939902,1783032648000,-438.51,0.00027872,2]
[426939910,1783032648000,-3094.51763811,0.000329,2]
[426939905,1783032648000,-776.506228,0.0003009,7]
[426939900,1783032648000,-438.51,0.0002755,30]
[426939906,1783032648000,-776.506228,0.000301,7]
[426939907,1783032648000,-776.506228,0.00032347,7]
[426939903,1783032648000,-438.51,0.00028033,30]
[426939904,1783032648000,-468.69590051,0.000299,2]
[426939899,1783032648000,-776.506228,0.00027397,2]
[426939912,1783032648000,-3094.51763811,0.000329,2]
[426939908,1783032648000,-10149.5787799,0.000329,15]
[426939917,1783032648000,-3094.51763811,0.000329,2]
[426939927,1783032648000,-800.0,0.00033,5]
[426939913,1783032648000,-3094.51763811,0.000329,2]
[426939916,1783032648000,-3094.51763811,0.000329,2]
[426939928,1783032648000,-37302.84232776,0.00033,120]
[426939929,1783032648000,-438.51,0.00028194,7]
[426939925,1783032648000,-160.0,0.00033,30]
[426939930,1783032648000,-284.31423056,0.00033,120]
[426939924,1783032648000,-160.0,0.00033,120]
[426939931,1783032648000,-7708.60534159,0.00033,120]
[426939919,1783032648000,-259.603051,0.00032923,2]
[426939918,1783032648000,-3094.51763811,0.000329,2]
[426939915,1783032648000,-3094.51763811,0.000329,2]
[426939914,1783032648000,-3094.51763811,0.000329,2]
[426939920,1783032648000,-150.0,0.00032995,30]
[426939923,1783032648000,-216.69616408,0.00033,7]
[426939921,1783032648000,-800.0,0.00033,5]
[426939926,1783032648000,-160.0,0.00033,10]
[426939981,1783033831000,-171.61116136,0.00016899,2]
[426939995,1783033832000,-151.0,0.00017,2]
[426939996,1783033832000,-152.0,0.00017,2]
[426939997,1783033832000,-151.0,0.00017,2]
[426939999,1783033832000,-152.0,0.00017,2]
[426940000,1783033832000,-150.0,0.00017,2]
[426939993,1783033832000,-127.14297369,0.00017,2]
[426939998,1783033832000,-151.0,0.00017,2]
[426939991,1783033832000,-151.0,0.00017,2]
[426939983,1783033832000,-38.54621297,0.00016906,2]
[426939990,1783033832000,-151.0,0.00017,2]
[426939988,1783033832000,-150.0,0.00016999,2]
[426939989,1783033832000,-152.0,0.00017,2]
[426939985,1783033832000,-1036.36319858,0.00016906,2]
[426939987,1783033832000,-290.31774471,0.00016925,2]
[426939986,1783033832000,-1000.0,0.00016912,2]
[426939982,1783033832000,-171.07452103,0.000169,2]
[426939994,1783033832000,-23.85702631,0.00017,2]
[426939992,1783033832000,-152.0,0.00017,2]
[426940002,1783033832000,-78.02297369,0.00017,2]
[426940024,1783033832000,-301.79573321,0.000174,2]
[426940009,1783033832000,-72.97702631,0.00017,2]
[426940001,1783033832000,-152.0,0.00017,2]
[426940027,1783033832000,-610.8498,0.000179,2]
[426940025,1783033832000,-401.63,0.00017645,2]
[426940023,1783033832000,-533.0,0.00017,2]
[426940026,1783033832000,-451.46836766,0.000179,2]
[426940020,1783033832000,-151.0,0.00017,2]
[426940021,1783033832000,-152.0,0.00017,2]
[426940015,1783033832000,-152.0,0.00017,2]
[426940022,1783033832000,-150.0,0.00017,2]
[426940018,1783033832000,-152.0,0.00017,2]
[426940013,1783033832000,-151.0,0.00017,2]
[426940016,1783033832000,-151.0,0.00017,2]
[426940017,1783033832000,-151.0,0.00017,2]
[426940014,1783033832000,-150.0,0.00017,2]
[426940012,1783033832000,-151.0,0.00017,2]
[426940010,1783033832000,-151.0,0.00017,2]
[426940019,1783033832000,-152.0,0.00017,2]
[426940011,1783033832000,-150.0,0.00017,2]
[426940058,1783033833000,-299.99,0.00021757,7]
[426940060,1783033833000,-1896.53034422,0.000219,2]
[426940057,1783033833000,-352.71,0.00021757,2]
[426940054,1783033833000,-9999.99,0.00021757,2]
[426940052,1783033833000,-499.99,0.00021757,2]
[426940053,1783033833000,-9999.99,0.00021757,2]
[426940059,1783033833000,-2471.9,0.00021757,2]
[426940055,1783033833000,-1732.56,0.00021757,2]
[426940069,1783033833000,-151.0,0.00022956,2]
[426940070,1783033833000,-151.0,0.00022956,2]
[426940064,1783033833000,-151.0,0.00022956,2]
[426940061,1783033833000,-1429.62951737,0.00021906,2]
[426940062,1783033833000,-150.0,0.00021918,2]
[426940065,1783033833000,-151.0,0.00022956,2]
[426940068,1783033833000,-151.0,0.00022956,2]
[426940067,1783033833000,-151.0,0.00022956,2]
[426940063,1783033833000,-171.61116136,0.00022462,2]
[426940050,1783033833000,-9999.99,0.00021757,2]
[426940078,1783033833000,-151.0,0.00022956,2]
[426940074,1783033833000,-110.4127354,0.00022956,2]
[426940066,1783033833000,-151.0,0.00022956,2]
[426940047,1783033833000,-1896.53034422,0.000216,2]
[426940041,1783033833000,-13221.22,0.0002094,2]
[426940048,1783033833000,-307.26,0.00021644,4]
[426940031,1783033833000,-178.57,0.00018016,2]
[426940028,1783033833000,-151.0,0.00018,2]
[426940029,1783033833000,-151.0,0.00018,2]
[426940076,1783033833000,-151.0,0.00022956,2]
[426940030,1783033833000,-151.0,0.00018,2]
[426940033,1783033833000,-4000.0,0.0001859,2]
[426940035,1783033833000,-500.0,0.00019599,2]
[426940034,1783033833000,-188.19,0.00019355,7]
[426940038,1783033833000,-160.0,0.00019847,2]
[426940039,1783033833000,-216.69616408,0.00019847,2]
[426940037,1783033833000,-160.0,0.00019847,2]
[426940036,1783033833000,-171.35,0.00019621,2]
[426940043,1783033833000,-1896.53034422,0.000212,2]
[426940042,1783033833000,-1896.53034422,0.00021,2]
[426940040,1783033833000,-1000.0,0.00020911,2]
[426940044,1783033833000,-183.97,0.00021308,2]
[426940045,1783033833000,-1896.53034422,0.000214,2]
[426940046,1783033833000,-1619.53,0.00021562,2]
[426940032,1783033833000,-600.0,0.0001859,2]
[426940056,1783033833000,-9999.99,0.00021757,2]
[426940049,1783033833000,-150.99,0.00021757,2]
[426940051,1783033833000,-1824.02,0.00021757,2]
[426940077,1783033833000,-151.0,0.00022956,2]
[426940104,1783033833000,-5902.62,0.00024164,2]
[426940080,1783033833000,-151.0,0.00022956,2]
[426940101,1783033833000,-635.0,0.00024,7]
[426940102,1783033833000,-170.0,0.00024,2]
[426940105,1783033833000,-150.0,0.00024164,2]
[426940107,1783033833000,-1037.16182119,0.00024173,2]
[426940106,1783033833000,-1037.16182119,0.00024173,2]
[426940117,1783033833000,-1037.16182119,0.00024173,2]
[426940108,1783033833000,-1037.16182119,0.00024173,2]
[426940116,1783033833000,-1037.16182119,0.00024173,2]
[426940110,1783033833000,-1037.16182119,0.00024173,2]
[426940114,1783033833000,-1037.16182119,0.00024173,2]
[426940112,1783033833000,-1037.16182119,0.00024173,2]
[426940109,1783033833000,-1037.16182119,0.00024173,2]
[426940115,1783033833000,-1037.16182119,0.00024173,2]
[426940111,1783033833000,-1037.16182119,0.00024173,2]
[426940113,1783033833000,-1037.16182119,0.00024173,2]
[426940118,1783033833000,-1037.16182119,0.00024173,2]
[426940119,1783033833000,-1037.16182119,0.00024173,2]
[426940121,1783033833000,-1037.16182119,0.00024173,2]
[426940123,1783033833000,-580.24580315,0.00024173,2]
[426940122,1783033833000,-1037.16182119,0.00024173,2]
[426940075,1783033833000,-40.5872646,0.00022956,2]
[426940097,1783033833000,-274.0,0.00024,2]
[426940100,1783033833000,-161.0,0.00024,2]
[426940120,1783033833000,-1037.16182119,0.00024173,2]
[426940099,1783033833000,-279.0,0.00024,2]
[426940071,1783033833000,-151.0,0.00022956,2]
[426940096,1783033833000,-151.0,0.00024,2]
[426940073,1783033833000,-151.0,0.00022956,2]
[426940072,1783033833000,-151.0,0.00022956,2]
[426940081,1783033833000,-151.0,0.00022956,2]
[426940082,1783033833000,-151.0,0.00022956,2]
[426940083,1783033833000,-151.0,0.00022956,2]
[426940088,1783033833000,-6860.97,0.00023196,2]
[426940087,1783033833000,-258.36,0.00023196,2]
[426940085,1783033833000,-150.0,0.00023014,2]
[426940079,1783033833000,-151.0,0.00022956,2]
[426940084,1783033833000,-151.0,0.00022956,2]
[426940086,1783033833000,-5000.0,0.00023168,2]
[426940098,1783033833000,-154.0,0.00024,2]
[426940103,1783033833000,-156.36450896,0.00024032,2]
[426940095,1783033833000,-156.0,0.00024,2]
[426940094,1783033833000,-322.0,0.00024,2]
[426940091,1783033833000,-156.36450896,0.00023758,2]
[426940092,1783033833000,-258.36,0.00023776,2]
[426940089,1783033833000,-200.0,0.00023528,2]
[426940090,1783033833000,-180.1,0.00023582,2]
[426940093,1783033833000,-227.0,0.00024,2]
[426940141,1783033838000,-500.0,0.00024172,2]
[426940132,1783033838000,-500.0,0.00024172,2]
[426940139,1783033838000,-500.0,0.00024172,2]
[426940136,1783033838000,-500.0,0.00024172,2]
[426940134,1783033838000,-500.0,0.00024172,2]
[426940135,1783033838000,-500.0,0.00024172,2]
[426940129,1783033838000,-500.0,0.00024172,2]
[426940131,1783033838000,-500.0,0.00024172,2]
[426940130,1783033838000,-372.34176263,0.00024172,2]
[426940128,1783033838000,-500.0,0.00024172,2]
[426940127,1783033838000,-500.0,0.00024172,2]
[426940137,1783033838000,-500.0,0.00024172,2]
[426940133,1783033838000,-500.0,0.00024172,2]
[426940140,1783033838000,-500.0,0.00024172,2]
[426940138,1783033838000,-500.0,0.00024172,2]
[426940143,1783033838000,-500.0,0.00024172,2]
[426940146,1783033838000,-500.0,0.00024172,2]
[426940155,1783033838000,-500.0,0.00024172,2]
[426940154,1783033838000,-500.0,0.00024172,2]
[426940152,1783033838000,-500.0,0.00024172,2]
[426940153,1783033838000,-500.0,0.00024172,2]
[426940151,1783033838000,-83.34138452,0.00024172,2]
[426940149,1783033838000,-500.0,0.00024172,2]
[426940156,1783033838000,-122.39176286,0.00024172,2]
[426940148,1783033838000,-500.0,0.00024172,2]
[426940147,1783033838000,-500.0,0.00024172,2]
[426940142,1783033838000,-500.0,0.00024172,2]
[426940145,1783033838000,-500.0,0.00024172,2]
[426940144,1783033838000,-500.0,0.00024172,2]
[426940150,1783033838000,-416.65861548,0.00024172,2]
[426940186,1783033840000,-500.0,0.00024172,2]
[426940176,1783033840000,-500.0,0.00024172,2]
[426940182,1783033840000,-500.0,0.00024172,2]
[426940185,1783033840000,-500.0,0.00024172,2]
[426940178,1783033840000,-500.0,0.00024172,2]
[426940184,1783033840000,-500.0,0.00024172,2]
[426940183,1783033840000,-500.0,0.00024172,2]
[426940187,1783033840000,-500.0,0.00024172,2]
[426940190,1783033840000,-235.9600674,0.00024172,2]
[426940191,1783033840000,-500.0,0.00024172,2]
[426940181,1783033840000,-500.0,0.00024172,2]
[426940179,1783033840000,-500.0,0.00024172,2]
[426940180,1783033840000,-500.0,0.00024172,2]
[426940168,1783033840000,-500.0,0.00024172,2]
[426940175,1783033840000,-500.0,0.00024172,2]
[426940171,1783033840000,-500.0,0.00024172,2]
[426940172,1783033840000,-509.64603109,0.00024172,2]
[426940174,1783033840000,-500.0,0.00024172,2]
[426940170,1783033840000,-500.0,0.00024172,2]
[426940169,1783033840000,-500.0,0.00024172,2]
[426940166,1783033840000,-500.0,0.00024172,2]
[426940167,1783033840000,-500.0,0.00024172,2]
[426940165,1783033840000,-500.0,0.00024172,2]
[426940164,1783033840000,-200.39017283,0.00024172,2]
[426940163,1783033840000,-377.60823714,0.00024172,2]
[426940189,1783033840000,-264.0399326,0.00024172,2]
[426940177,1783033840000,-500.0,0.00024172,2]
[426940194,1783033840000,-500.0,0.00024172,2]
[426940173,1783033840000,-500.0,0.00024172,2]
[426940197,1783033840000,-139.03883512,0.00024172,2]
[426940193,1783033840000,-500.0,0.00024172,2]
[426940221,1783033840000,-8943.78386462,0.00024174,2]
[426940218,1783033840000,-823.9530321,0.00024174,2]
[426940215,1783033840000,-500.0,0.00024172,2]
[426940219,1783033840000,-366.4969679,0.00024174,2]
[426940217,1783033840000,-720.11,0.00024174,2]
[426940214,1783033840000,-500.0,0.00024172,2]
[426940216,1783033840000,-6176.42,0.00024174,2]
[426940213,1783033840000,-151.11629538,0.00024172,2]
[426940209,1783033840000,-500.0,0.00024172,2]
[426940211,1783033840000,-500.0,0.00024172,2]
[426940220,1783033840000,-8580.72182683,0.00024174,2]
[426940210,1783033840000,-302.02150329,0.00024172,2]
[426940206,1783033840000,-500.0,0.00024172,2]
[426940212,1783033840000,-348.88370462,0.00024172,2]
[426940205,1783033840000,-500.0,0.00024172,2]
[426940192,1783033840000,-500.0,0.00024172,2]
[426940207,1783033840000,-500.0,0.00024172,2]
[426940195,1783033840000,-500.0,0.00024172,2]
[426940188,1783033840000,-500.0,0.00024172,2]
[426940199,1783033840000,-74.54644802,0.00024172,2]
[426940198,1783033840000,-360.96116488,0.00024172,2]
[426940196,1783033840000,-500.0,0.00024172,2]
[426940201,1783033840000,-500.0,0.00024172,2]
[426940202,1783033840000,-500.0,0.00024172,2]
[426940204,1783033840000,-500.0,0.00024172,2]
[426940203,1783033840000,-500.0,0.00024172,2]
[426940208,1783033840000,-500.0,0.00024172,2]
[426940200,1783033840000,-225.45355198,0.00024172,2]
[426940224,1783033841000,-258.36,0.00024356,2]
[426940228,1783033841000,-418.5,0.00024594,2]
[426940227,1783033841000,-150.0,0.00024593,2]
[426940226,1783033841000,-156.36450896,0.0002458,2]
[426940229,1783033841000,-169.71,0.00024658,2]
[426940230,1783033841000,-1852.42,0.0002475,2]
[426940225,1783033841000,-154.98925467,0.00024397,2]
[426940223,1783033841000,-156.36450896,0.00024306,2]
[426940231,1783033841000,-156.36450896,0.00024854,2]
[426940232,1783033841000,-258.36,0.00024936,2]
[426940222,1783033841000,-869.26430855,0.00024174,2]
[426940236,1783033841000,-151.0,0.00025,2]
[426940243,1783033841000,-600.20952558,0.00025325,2]
[426940237,1783033841000,-274.0,0.00025,2]
[426940234,1783033841000,-322.0,0.00025,2]
[426940238,1783033841000,-154.0,0.00025,2]
[426940244,1783033841000,-411.93986378,0.00025325,2]
[426940240,1783033841000,-156.36450896,0.00025128,2]
[426940239,1783033841000,-279.0,0.00025,2]
[426940241,1783033841000,-153.41244753,0.00025237,2]
[426940242,1783033841000,-500.0,0.0002526,2]
[426940246,1783033841000,-500.0,0.00025325,2]
[426940233,1783033841000,-227.0,0.00025,2]
[426940245,1783033841000,-500.0,0.00025325,2]
[426940247,1783033841000,-80.92522557,0.00025325,2]
[426940235,1783033841000,-167.0,0.00025,2]
[426940263,1783033843000,-150.0,0.00025373,2]
[426940262,1783033843000,-2500.0,0.00025326,2]
[426940258,1783033843000,-500.0,0.00025325,2]
[426940274,1783033843000,-157.06,0.00025675,7]
[426940270,1783033843000,-258.36,0.00025516,2]
[426940255,1783033843000,-500.0,0.00025325,2]
[426940257,1783033843000,-400.14941345,0.00025325,2]
[426940256,1783033843000,-500.0,0.00025325,2]
[426940254,1783033843000,-419.07477443,0.00025325,2]
[426940272,1783033843000,-250.0,0.0002552,2]
[426940259,1783033843000,-500.0,0.00025325,2]
[426940266,1783033843000,-156.36450896,0.00025402,2]
[426940283,1783033843000,-151.0,0.00026,2]
[426940276,1783033843000,-332.0,0.000259,5]
[426940260,1783033843000,-591.8565165,0.00025325,2]
[426940268,1783033843000,-1000.0,0.00025427,2]
[426940279,1783033843000,-150.0,0.00025993,5]
[426940282,1783033843000,-322.0,0.00026,2]
[426940278,1783033843000,-156.36450896,0.0002595,2]
[426940285,1783033843000,-279.0,0.00026,2]
[426940284,1783033843000,-274.0,0.00026,2]
[426940280,1783033843000,-227.0,0.00026,2]
[426940286,1783033843000,-154.21968234,0.0002605,2]
[426940287,1783033843000,-12290.47093015,0.00026133,120]
[426940275,1783033843000,-156.36450896,0.00025676,2]
[426940291,1783033846000,-11700.99640079,0.00026133,120]
[426940290,1783033846000,-2744.73862495,0.00026133,120]
[426940289,1783033846000,-3553.209568,0.00026133,120]
[426940300,1783034180000,565.50396232,0.00011966,2]
[426940302,1783034610000,968.499637,0.00019,60]
[426940335,1783035032000,-1240.64296976,0.00020318,2]
[426940337,1783035032000,-6204.84384216,0.00020318,2]
[426940336,1783035032000,-2554.50318808,0.00020318,2]
[426940338,1783035032000,-1681.75,0.00020318,2]
[426940334,1783035032000,-1298.6791535,0.00020318,2]
[426940333,1783035032000,-622.71800327,0.00020318,2]
[426940329,1783035032000,-2298.94700101,0.00020318,5]
[426940331,1783035032000,-299.99,0.00020318,7]
[426940332,1783035032000,-8078.59284323,0.00020318,2]
[426940330,1783035032000,-1228.89145754,0.00020318,5]
[426940325,1783035032000,-2062.88660458,0.00020318,5]
[426940328,1783035032000,-304.228069,0.00020318,5]
[426940339,1783035032000,-151.0,0.00020338,2]
[426940327,1783035032000,-829.63571853,0.00020318,5]
[426940315,1783035032000,-171.35,0.00017798,2]
[426940324,1783035032000,-150.99,0.00020318,2]
[426940322,1783035032000,-1409.44795623,0.00020318,2]
[426940323,1783035032000,-2747.09204377,0.00020318,2]
[426940321,1783035032000,-150.0,0.00020318,2]
[426940320,1783035032000,-150.0,0.00020313,2]
[426940317,1783035032000,-151.0,0.0001782,2]
[426940319,1783035032000,-163.9,0.00020313,2]
[426940316,1783035032000,-151.0,0.0001782,2]
[426940318,1783035032000,-500.0,0.0001804,2]
[426940313,1783035032000,-188.39106301,0.00017698,2]
[426940310,1783035032000,-528.54,0.000164,2]
[426940311,1783035032000,-874.54629724,0.00016475,2]
[426940312,1783035032000,-533.0,0.00017,2]
[426940341,1783035032000,-151.0,0.00020395,2]
[426940326,1783035032000,-2827.72114934,0.00020318,5]
[426940342,1783035032000,-151.0,0.00020395,2]
[426940388,1783035032000,-907.0,0.00021153,2]
[426940356,1783035032000,-916.0,0.00020435,2]
[426940340,1783035032000,-298.86290662,0.00020395,2]
[426940395,1783035032000,-150.0,0.00021706,2]
[426940399,1783035032000,-150.0,0.00021918,2]
[426940397,1783035032000,-200.0,0.00021786,2]
[426940398,1783035032000,-734.8,0.00021799,2]
[426940392,1783035032000,-1163.14657533,0.00021475,2]
[426940390,1783035032000,-903.0,0.00021153,2]
[426940401,1783035032000,-883.90898782,0.00022061,2]
[426940386,1783035032000,-500.0,0.00021123,2]
[426940384,1783035032000,-911.0,0.00020965,2]
[426940375,1783035032000,-160.0,0.00020825,2]
[426940369,1783035032000,-905.0,0.00020681,2]
[426940373,1783035032000,-160.0,0.00020825,2]
[426940371,1783035032000,-918.0,0.00020821,2]
[426940400,1783035032000,-7934.16,0.0002193,2]
[426940379,1783035032000,-500.0,0.00020849,2]
[426940343,1783035032000,-152.0,0.00020395,2]
[426940346,1783035032000,-151.0,0.00020395,2]
[426940352,1783035032000,-914.0,0.00020412,2]
[426940348,1783035032000,-151.0,0.00020395,2]
[426940377,1783035032000,-150.0,0.00020849,2]
[426940344,1783035032000,-152.0,0.00020395,2]
[426940354,1783035032000,-904.0,0.00020412,2]
[426940358,1783035032000,-892.0,0.00020486,2]
[426940362,1783035032000,-908.0,0.00020586,2]
[426940364,1783035032000,-216.69616408,0.00020597,2]
[426940361,1783035032000,-888.0,0.00020586,2]
[426940367,1783035032000,-911.0,0.00020681,2]
[426940382,1783035032000,-882.0,0.00020965,2]
[426940350,1783035032000,-785.0,0.00020402,2]
[426940419,1783035038000,-200.0,0.00024,2]
[426940421,1783035038000,-156.0,0.00024,2]
[426940420,1783035038000,-286.0,0.00024,2]
[426940423,1783035038000,-255.0,0.00024,2]
[426940424,1783035038000,-157.0,0.00024,2]
[426940429,1783035038000,-156.36450896,0.00024472,2]
[426940425,1783035038000,-222.0,0.00024,2]
[426940427,1783035038000,-156.36450896,0.00024198,2]
[426940430,1783035038000,-734.8,0.00024524,2]
[426940431,1783035038000,-642.78,0.0002458,7]
[426940426,1783035038000,-150.0,0.00024164,2]
[426940422,1783035038000,-242.0,0.00024,2]
[426940418,1783035038000,-156.36450896,0.00023924,2]
[426940410,1783035038000,-24585.59,0.00022571,2]
[426940415,1783035038000,-899.0,0.00023434,2]
[426940411,1783035038000,-892.0,0.00022676,2]
[426940413,1783035038000,-10414.194,0.00022756,120]
[426940412,1783035038000,-500.0,0.00022685,2]
[426940414,1783035038000,-150.0,0.00023014,2]
[426940405,1783035038000,-5000.0,0.00022104,2]
[426940407,1783035038000,-1000.0,0.00022267,2]
[426940409,1783035038000,-20039.6997,0.00022471,2]
[426940408,1783035038000,-4190.4508,0.00022471,2]
[426940404,1783035038000,-906.0,0.00022061,2]
[426940406,1783035038000,-150.0,0.00022127,2]
[426940403,1783035038000,-24.09101218,0.00022061,2]
[426940428,1783035038000,-156.93261284,0.00024198,2]
[426940417,1783035038000,-156.93261284,0.0002365,2]
[426940433,1783035038000,-209.38,0.00024695,120]
[426940416,1783035038000,-156.36450896,0.0002365,2]
[426940435,1783035038000,-156.93261284,0.00024746,2]
[426940432,1783035038000,-169.71,0.00024658,2]
[426940463,1783035038000,-500.0,0.00025683,2]
[426940466,1783035038000,-500.0,0.00025683,2]
[426940462,1783035038000,-500.0,0.00025683,2]
[426940464,1783035038000,-500.0,0.00025683,2]
[426940459,1783035038000,-420.14666791,0.00025683,2]
[426940461,1783035038000,-314.29956155,0.00025683,2]
[426940455,1783035038000,-500.0,0.00025683,2]
[426940460,1783035038000,-500.0,0.00025683,2]
[426940457,1783035038000,-500.0,0.00025683,2]
[426940452,1783035038000,-288.35790464,0.00025683,2]
[426940448,1783035038000,-441.43113125,0.00025585,2]
[426940451,1783035038000,-500.0,0.00025683,2]
[426940450,1783035038000,-500.0,0.00025683,2]
[426940465,1783035038000,-500.0,0.00025683,2]
[426940449,1783035038000,-261250.40661795,0.00025683,2]
[426940453,1783035038000,-480.10458941,0.00025683,2]
[426940436,1783035038000,-200.0,0.00025,2]
[426940441,1783035038000,-156.36450896,0.00025294,2]
[426940438,1783035038000,-242.0,0.00025,2]
[426940440,1783035038000,-156.36450896,0.0002502,2]
[426940439,1783035038000,-255.0,0.00025,2]
[426940434,1783035038000,-156.36450896,0.00024746,2]
[426940442,1783035038000,-156.93261284,0.00025294,2]